{"text_format":"1","workbook":"xlsx","n_sheets":4,"sheets":["Титульный","Кроссворд","Расчётный","Итоговый"],"not_rendered":{"charts":0,"images":3,"macros":1,"external_links":0,"defined_names":0,"comments":1,"pivot_tables":0},"unopened":[],"bounds":{"document_bytes":16777216,"sheet_cells":100000,"rows_first":2000,"rows_last":500,"rows_between":2000,"halvings":0,"cell_chars":16384,"cell_head_chars":4096},"cells_cut":0,"cells_raw":0,"read":"whole","date_system":"1900"}

{"sheet":"Титульный","index":0,"n_rows":23,"n_cols":3,"rows_kept":23,"cut":false,"hidden":false,"merged":[[9,2,11,7],[14,2,16,7],[9,9,11,16],[14,9,16,12],[35,13,37,18],[22,1,25,7]]}
[]
[]
[]
[]
[]
[]
[]
[]
[]
[null,null,"Фамилия Имя"]
[]
[]
[]
[]
[null,null,"Класс"]
[]
[]
[]
[]
[]
[]
[]
[null,"Авторы: Чертова Елена и Ведерников Дмитрий"]

{"sheet":"Кроссворд","index":1,"n_rows":23,"n_cols":46,"rows_kept":23,"cut":false,"hidden":false,"merged":[]}
[]
[]
[null,null,null,null,null,null,null,null,null,null,null,null,null,null,null,null,null,null,null,null,null,null,null,null,null,null,null,null,null,null,null,null,null,null,null,null,null,null,null,null,null,null,null,null,null,10]
[]
[null,null,null,null,null,null,null,null,null,null,null,null,null,null,null,null,null,null,null,null,null,null,null,null,null,null,null,null,null,null,null,4,null,null,null,null,null,null,null,null,null,null,null,1]
[]
[null,null,null,null,null,null,null,null,null,null,null,null,null,null,null,null,null,null,null,null,null,null,null,null,null,null,9]
[]
[]
[null,null,null,null,null,null,null,null,null,null,null,null,null,null,null,null,null,null,null,null,null,null,null,null,null,null,null,null,null,7]
[null,null,null,null,null,null,null,null,null,null,null,null,null,null,null,null,null,null,null,null,null,null,null,null,null,null,null,null,null,null,null,null,null,null,3,null,null,8,null,null,2]
[null,null,null,null,null,null,null,null,null,null,null,null,null,null,null,null,null,null,null,null,null,null,null,null,null,null,null,null,null,null,null,null,5]
[]
[]
[]
[]
[]
[]
[]
[]
[]
[]
[null,null,null,null,null,null,null,null,null,null,null,null,null,null,null,null,null,null,null,null,null,null,null,null,null,null,null,null,null,null,null,null,null,null,null,null,null,6]

{"sheet":"Расчётный","index":2,"n_rows":14,"n_cols":4,"rows_kept":14,"cut":false,"hidden":true,"merged":[]}
["№","Ответы проверяемого","Правильные ответы","Баллы"]
[1,{"$f":"CONCATENATE(Кроссворд!AR6,Кроссворд!AR7,Кроссворд!AR8,Кроссворд!AR9,Кроссворд!AR10,Кроссворд!AR11,Кроссворд!AR12)","v":""},"УНАРНАЯ",{"$f":"IF(B2=C2,1,0)","v":0}]
[2,{"$f":"CONCATENATE(Кроссворд!AO12,Кроссворд!AO13,Кроссворд!AO14,Кроссворд!AO15,Кроссворд!AO16,Кроссворд!AO17,Кроссворд!AO18,Кроссворд!AO19,Кроссворд!AO20,Кроссворд!AO21,Кроссворд!AO22,Кроссворд!AO23,Кроссворд!AO24)","v":""},"НЕПОЗИЦИОННАЯ",{"$f":"IF(B3=C3,1,0)","v":0}]
[3,{"$f":"CONCATENATE(Кроссворд!AI12,Кроссворд!AI13,Кроссворд!AI14,Кроссворд!AI15,Кроссворд!AI16,Кроссворд!AI17,Кроссворд!AI18,Кроссворд!AI19,Кроссворд!AI20)","v":""},"ОСНОВАНИЕ",0]
[4,{"$f":"CONCATENATE(Кроссворд!AF6,Кроссворд!AF7,Кроссворд!AF8,Кроссворд!AF9,Кроссворд!AF10,Кроссворд!AF11,Кроссворд!AF12)","v":""},"АЛФАВИТ",0]
[5,{"$f":"CONCATENATE(Кроссворд!AH12,Кроссворд!AI12,Кроссворд!AJ12,Кроссворд!AK12,Кроссворд!AL12,Кроссворд!AM12,Кроссворд!AN12,Кроссворд!AO12,Кроссворд!AP12,Кроссворд!AQ12,Кроссворд!AR12)","v":""},"ПОЗИЦИОННАЯ",0]
[6,{"$f":"CONCATENATE(Кроссворд!AM23,Кроссворд!AN23,Кроссворд!AO23)","v":""},"ДВА",0]
[7,{"$f":"CONCATENATE(Кроссворд!AE10,Кроссворд!AF10,Кроссворд!AG10,Кроссворд!AH10,Кроссворд!AI10,Кроссворд!AJ10,Кроссворд!AK10,Кроссворд!AL10,Кроссворд!AM10,Кроссворд!AN10,Кроссворд!AO10,Кроссворд!AP10,Кроссворд!AQ10,Кроссворд!AR10,Кроссворд!AS10,Кроссворд!AT10)","v":""},"ДВЕНАДЦАТЕРИЧНАЯ",0]
[8,{"$f":"CONCATENATE(Кроссворд!AL12,Кроссворд!AL13,Кроссворд!AL14,Кроссворд!AL15,Кроссворд!AL16)","v":""},"ЦИФРЫ",0]
[9,{"$f":"CONCATENATE(Кроссворд!AB7,Кроссворд!AC7,Кроссворд!AD7,Кроссворд!AE7,Кроссворд!AF7,Кроссворд!AG7,Кроссворд!AH7,Кроссворд!AI7,Кроссворд!AJ7,Кроссворд!AK7,Кроссворд!AL7,Кроссворд!AM7,Кроссворд!AN7,Кроссворд!AO7)","v":""},"ДОПОЛНИТЕЛЬНЫЙ",0]
[10,{"$f":"CONCATENATE(Кроссворд!AT4,Кроссворд!AT5,Кроссворд!AT6,Кроссворд!AT7,Кроссворд!AT8,Кроссворд!AT9,Кроссворд!AT10)","v":""},"РИМСКАЯ",0]
[]
[null,null,"Итого:",{"$f":"SUM(D2:D12)","v":0}]
[null,null,"Ваша оценка:",{"$f":"IF(D13>=10,5, IF(D13>=8,4, IF(D13>=6,3,2)))","v":2}]

{"sheet":"Итоговый","index":3,"n_rows":9,"n_cols":2,"rows_kept":9,"cut":false,"hidden":false,"merged":[[3,1,5,8],[8,1,10,4]]}
[]
[]
[]
[null,{"$f":"Титульный!J10","v":0}]
[]
[]
[]
[]
[null,{"$f":"Расчётный!D14","v":2}]